[Event "Early-Titled-Tuesday-Blitz-February-20-2024"]
[Site "Chess.com"]
[Date "2024.02.20"]
[Round "3"]
[White "shimastream"]
[Black "chessdjw"]
[Result "1-0"]
[WhiteElo "2983"]
[BlackElo "2749"]
[TimeControl "180+1"]
[EndTime "8:29:06 PST"]
[Termination "shimastream won by checkmate"]

1. d4 {[%clk 0:02:59.6]} 1... Nf6 {[%clk 0:03:00.2]} 2. c4 {[%clk 0:02:50.9]}
2... e6 {[%clk 0:03:00]} 3. Nf3 {[%clk 0:02:50.6]} 3... b6 {[%clk 0:02:59.4]} 4.
a3 {[%clk 0:02:45.7]} 4... Bb7 {[%clk 0:02:59.6]} 5. Nc3 {[%clk 0:02:45.2]} 5...
d5 {[%clk 0:03:00.1]} 6. Qa4+ {[%clk 0:02:45.1]} 6... Qd7 {[%clk 0:02:59.3]} 7.
Qc2 {[%clk 0:02:44]} 7... Nc6 {[%clk 0:02:39]} 8. Bg5 {[%clk 0:02:38.3]} 8...
Be7 {[%clk 0:02:34.8]} 9. e3 {[%clk 0:02:38.2]} 9... h6 {[%clk 0:02:31.7]} 10.
Bh4 {[%clk 0:02:37.9]} 10... a6 {[%clk 0:02:31.6]} 11. Rd1 {[%clk 0:02:35]}
11... O-O {[%clk 0:02:27.4]} 12. Be2 {[%clk 0:02:30.8]} 12... dxc4 {[%clk
0:02:19.9]} 13. Bxc4 {[%clk 0:02:28.8]} 13... Nd5 {[%clk 0:02:20]} 14. Bg3
{[%clk 0:02:23.1]} 14... Nxc3 {[%clk 0:02:18.2]} 15. Qxc3 {[%clk 0:02:21.3]}
15... b5 {[%clk 0:02:12.9]} 16. Ba2 {[%clk 0:02:02.2]} 16... b4 {[%clk 0:02:12]}
17. Qd3 {[%clk 0:02:01.1]} 17... a5 {[%clk 0:01:59.4]} 18. a4 {[%clk 0:01:58.5]}
18... b3 {[%clk 0:01:50.8]} 19. Bxb3 {[%clk 0:01:43.5]} 19... Bb4+ {[%clk
0:01:32.1]} 20. Ke2 {[%clk 0:01:38.7]} 20... Bd6 {[%clk 0:01:23.7]} 21. Bc4
{[%clk 0:01:14.3]} 21... Nb4 {[%clk 0:01:19.9]} 22. Qb3 {[%clk 0:01:04.4]} 22...
Bxg3 {[%clk 0:01:10.5]} 23. hxg3 {[%clk 0:01:04]} 23... c5 {[%clk 0:01:11.1]}
24. Bb5 {[%clk 0:00:56.7]} 24... Qe7 {[%clk 0:00:52]} 25. dxc5 {[%clk
0:00:46.1]} 25... Qxc5 {[%clk 0:00:50.6]} 26. Rc1 {[%clk 0:00:45.1]} 26... Qe7
{[%clk 0:00:48.2]} 27. Rhd1 {[%clk 0:00:37]} 27... Bd5 {[%clk 0:00:46.8]} 28.
Bc4 {[%clk 0:00:37]} 28... Rab8 {[%clk 0:00:46.6]} 29. Bxd5 {[%clk 0:00:35.5]}
29... Nxd5 {[%clk 0:00:46.6]} 30. Qc2 {[%clk 0:00:35.8]} 30... Qb7 {[%clk
0:00:39.1]} 31. Nd4 {[%clk 0:00:27.3]} 31... Rfc8 {[%clk 0:00:37.2]} 32. Qd2
{[%clk 0:00:25.8]} 32... Rxc1 {[%clk 0:00:30.3]} 33. Rxc1 {[%clk 0:00:25.4]}
33... Qxb2 {[%clk 0:00:28.1]} 34. Rc8+ {[%clk 0:00:15.2]} 34... Kh7 {[%clk
0:00:28.2]} 35. Rxb8 {[%clk 0:00:15.9]} 35... Qxb8 {[%clk 0:00:25.8]} 36. Nb5
{[%clk 0:00:16.1]} 36... Qb6 {[%clk 0:00:21.8]} 37. Qc2+ {[%clk 0:00:11.6]}
37... g6 {[%clk 0:00:21.2]} 38. Qc4 {[%clk 0:00:10.3]} 38... Nb4 {[%clk
0:00:19.4]} 39. g4 {[%clk 0:00:06]} 39... Qd8 {[%clk 0:00:15]} 40. Qd4 {[%clk
0:00:05]} 40... Qg5 {[%clk 0:00:11.6]} 41. Kf3 {[%clk 0:00:04.3]} 41... h5
{[%clk 0:00:11.8]} 42. gxh5 {[%clk 0:00:04.3]} 42... Qxh5+ {[%clk 0:00:12.4]}
43. Kg3 {[%clk 0:00:04.6]} 43... Qg5+ {[%clk 0:00:11.8]} 44. Kh2 {[%clk
0:00:05.1]} 44... Qh5+ {[%clk 0:00:11.7]} 45. Kg1 {[%clk 0:00:05.7]} 45... Nd5
{[%clk 0:00:11.6]} 46. Nd6 {[%clk 0:00:05.8]} 46... Kg8 {[%clk 0:00:10.8]} 47.
Ne8 {[%clk 0:00:05.6]} 47... Qf5 {[%clk 0:00:07.5]} 48. Qg7# {[%clk 0:00:05.3]}
1-0

[Event "Early-Titled-Tuesday-Blitz-February-20-2024"]
[Site "Chess.com"]
[Date "2024.02.20"]
[Round "3"]
[White "JSPrepz"]
[Black "DishonorOnYourCow"]
[Result "1-0"]
[WhiteElo "2865"]
[BlackElo "2600"]
[TimeControl "180+1"]
[EndTime "8:29:07 PST"]
[Termination "JSPrepz won on time"]

1. e4 {[%clk 0:03:00.9]} 1... c5 {[%clk 0:02:59.3]} 2. Nf3 {[%clk 0:02:57.3]}
2... d6 {[%clk 0:02:59.9]} 3. Nc3 {[%clk 0:02:57.2]} 3... a6 {[%clk 0:02:58.7]}
4. g3 {[%clk 0:02:57.4]} 4... Nc6 {[%clk 0:02:57.8]} 5. d4 {[%clk 0:02:57.3]}
5... cxd4 {[%clk 0:02:57.3]} 6. Nxd4 {[%clk 0:02:58.2]} 6... Nf6 {[%clk
0:02:56.1]} 7. Bg2 {[%clk 0:02:58.6]} 7... Bd7 {[%clk 0:02:52.5]} 8. O-O {[%clk
0:02:45.7]} 8... g6 {[%clk 0:02:52.1]} 9. Nxc6 {[%clk 0:02:37.4]} 9... Bxc6
{[%clk 0:02:51.2]} 10. Bg5 {[%clk 0:02:35.9]} 10... Bg7 {[%clk 0:02:50.8]} 11.
Qd2 {[%clk 0:02:36.3]} 11... O-O {[%clk 0:02:50]} 12. Rfe1 {[%clk 0:02:35.8]}
12... Rc8 {[%clk 0:02:38.9]} 13. Rad1 {[%clk 0:02:35.5]} 13... Qb6 {[%clk
0:02:28.8]} 14. b3 {[%clk 0:02:05.5]} 14... Qc7 {[%clk 0:02:15.5]} 15. Nd5
{[%clk 0:01:55]} 15... Bxd5 {[%clk 0:02:04.3]} 16. exd5 {[%clk 0:01:55.9]} 16...
Rfe8 {[%clk 0:02:04.5]} 17. c4 {[%clk 0:01:54.7]} 17... b5 {[%clk 0:02:03.3]}
18. Rc1 {[%clk 0:01:49.9]} 18... bxc4 {[%clk 0:02:00.7]} 19. Rxc4 {[%clk
0:01:50.7]} 19... Qb7 {[%clk 0:01:59.2]} 20. Rc6 {[%clk 0:01:48.7]} 20... Rxc6
{[%clk 0:01:38.9]} 21. dxc6 {[%clk 0:01:48.6]} 21... Qc7 {[%clk 0:01:36.4]} 22.
Qd3 {[%clk 0:01:35.1]} 22... a5 {[%clk 0:01:35.5]} 23. Qa6 {[%clk 0:01:32.4]}
23... h6 {[%clk 0:01:32.5]} 24. Bd2 {[%clk 0:01:31.1]} 24... d5 {[%clk
0:01:17.5]} 25. Bxa5 {[%clk 0:01:24.6]} 25... Qd6 {[%clk 0:01:17.2]} 26. Qb7
{[%clk 0:01:20.5]} 26... Ne4 {[%clk 0:00:58.6]} 27. c7 {[%clk 0:00:56.4]} 27...
Qc5 {[%clk 0:00:44.2]} 28. Bb6 {[%clk 0:00:55.2]} 28... Qc3 {[%clk 0:00:41.9]}
29. Rd1 {[%clk 0:00:45.5]} 29... Qc2 {[%clk 0:00:17.6]} 30. Qxd5 {[%clk
0:00:09.4]} 30... Nc3 {[%clk 0:00:16.8]} 31. Qd7 {[%clk 0:00:08.3]} 31... Qxd1+
{[%clk 0:00:08.2]} 32. Qxd1 {[%clk 0:00:08.1]} 32... Nxd1 {[%clk 0:00:09.1]} 33.
Bc6 {[%clk 0:00:07.1]} 33... Rc8 {[%clk 0:00:07.5]} 34. Bb7 {[%clk 0:00:06.3]}
34... Rxc7 {[%clk 0:00:07]} 35. Bxc7 {[%clk 0:00:07.2]} 35... Bd4 {[%clk
0:00:06.5]} 36. a4 {[%clk 0:00:05]} 36... Nxf2 {[%clk 0:00:06.3]} 37. Kf1 {[%clk
0:00:04.7]} 37... Nd3 {[%clk 0:00:05.9]} 38. Ba6 {[%clk 0:00:03.6]} 38... Nc5
{[%clk 0:00:05.7]} 39. Bc4 {[%clk 0:00:04.2]} 39... Bb2 {[%clk 0:00:05.7]} 40.
Bb6 {[%clk 0:00:04.4]} 40... Bc3 {[%clk 0:00:06.6]} 41. Bxc5 {[%clk 0:00:04.1]}
41... e5 {[%clk 0:00:05.8]} 42. b4 {[%clk 0:00:04.5]} 1-0

[Event "Early-Titled-Tuesday-Blitz-February-20-2024"]
[Site "Chess.com"]
[Date "2024.02.20"]
[Round "3"]
[White "Rud_Makarian"]
[Black "FontVella8"]
[Result "1-0"]
[WhiteElo "3081"]
[BlackElo "2702"]
[TimeControl "180+1"]
[EndTime "8:29:07 PST"]
[Termination "Rud_Makarian won by checkmate"]

1. d4 {[%clk 0:03:00.9]} 1... Nf6 {[%clk 0:02:59.9]} 2. c4 {[%clk 0:03:00.6]}
2... e6 {[%clk 0:03:00.3]} 3. Nf3 {[%clk 0:03:01]} 3... d5 {[%clk 0:02:59.5]} 4.
g3 {[%clk 0:03:01]} 4... Bb4+ {[%clk 0:02:58.8]} 5. Bd2 {[%clk 0:03:01.1]} 5...
Be7 {[%clk 0:02:59.1]} 6. Bg2 {[%clk 0:03:00.8]} 6... O-O {[%clk 0:02:59.7]} 7.
Qc2 {[%clk 0:03:01.7]} 7... c6 {[%clk 0:03:00.1]} 8. O-O {[%clk 0:03:02.4]} 8...
Nbd7 {[%clk 0:03:00.6]} 9. Bf4 {[%clk 0:03:03.1]} 9... b6 {[%clk 0:03:01.1]} 10.
Nbd2 {[%clk 0:03:03.8]} 10... Ba6 {[%clk 0:03:01.6]} 11. Rfe1 {[%clk 0:03:03.2]}
11... Nh5 {[%clk 0:03:01.2]} 12. Be5 {[%clk 0:03:00.5]} 12... Nxe5 {[%clk
0:02:58.1]} 13. Nxe5 {[%clk 0:02:55]} 13... Rc8 {[%clk 0:02:51.4]} 14. cxd5
{[%clk 0:02:27.1]} 14... cxd5 {[%clk 0:02:38.1]} 15. Qa4 {[%clk 0:02:27.2]}
15... Bb7 {[%clk 0:02:23]} 16. Qxa7 {[%clk 0:02:25.6]} 16... Qc7 {[%clk
0:02:21.4]} 17. Rec1 {[%clk 0:02:04.7]} 17... Qxc1+ {[%clk 0:02:06.8]} 18. Rxc1
{[%clk 0:02:05.6]} 18... Rxc1+ {[%clk 0:02:07.2]} 19. Nf1 {[%clk 0:02:06.1]}
19... Rc7 {[%clk 0:02:04.3]} 20. Qxb6 {[%clk 0:02:06.1]} 20... Rfc8 {[%clk
0:02:04.4]} 21. Bf3 {[%clk 0:01:55.6]} 21... Nf6 {[%clk 0:02:04.4]} 22. Kg2
{[%clk 0:01:55.6]} 22... Ne8 {[%clk 0:01:54.7]} 23. h4 {[%clk 0:01:48]} 23...
Nd6 {[%clk 0:01:54.8]} 24. Ne3 {[%clk 0:01:48]} 24... f6 {[%clk 0:01:53]} 25.
Nd3 {[%clk 0:01:43.5]} 25... Kf7 {[%clk 0:01:49.4]} 26. Nc5 {[%clk 0:01:39]}
26... Bc6 {[%clk 0:01:36.6]} 27. b4 {[%clk 0:01:32]} 27... Nc4 {[%clk
0:00:58.6]} 28. Nxc4 {[%clk 0:01:31.5]} 28... dxc4 {[%clk 0:00:58.8]} 29. Bxc6
{[%clk 0:01:31.2]} 29... Rxc6 {[%clk 0:00:59.1]} 30. Qb5 {[%clk 0:01:31.7]}
30... c3 {[%clk 0:00:56.3]} 31. Qc4 {[%clk 0:01:32.1]} 31... Ra8 {[%clk
0:00:50.6]} 32. d5 {[%clk 0:01:31.3]} 32... Rb6 {[%clk 0:00:47.8]} 33. dxe6+
{[%clk 0:01:30.5]} 33... Kg8 {[%clk 0:00:46.3]} 34. Qxc3 {[%clk 0:01:29.8]}
34... Rxa2 {[%clk 0:00:46.5]} 35. Qd4 {[%clk 0:01:17.8]} 35... Rd6 {[%clk
0:00:37.8]} 36. Qe4 {[%clk 0:01:15.2]} 36... Rdd2 {[%clk 0:00:29.9]} 37. Qb7
{[%clk 0:01:10.4]} 37... Kf8 {[%clk 0:00:20]} 38. Nd7+ {[%clk 0:00:59.1]} 38...
Ke8 {[%clk 0:00:20.2]} 39. Qc6 {[%clk 0:00:59.4]} 39... Kd8 {[%clk 0:00:13.9]}
40. Qb6+ {[%clk 0:00:54.6]} 40... Ke8 {[%clk 0:00:13.3]} 41. Qb5 {[%clk
0:00:55.3]} 41... Bd6 {[%clk 0:00:04.5]} 42. Ne5+ {[%clk 0:00:39.7]} 42... Kf8
{[%clk 0:00:04.7]} 43. Nc4 {[%clk 0:00:28.3]} 43... Rxe2 {[%clk 0:00:03.3]} 44.
Nxd6 {[%clk 0:00:23.2]} 44... Rxf2+ {[%clk 0:00:03.7]} 45. Kh3 {[%clk
0:00:23.8]} 45... g6 {[%clk 0:00:02]} 46. Qe8+ {[%clk 0:00:20.6]} 46... Kg7
{[%clk 0:00:02.3]} 47. Qe7+ {[%clk 0:00:20.5]} 47... Kh6 {[%clk 0:00:01.7]} 48.
Qf8+ {[%clk 0:00:19.3]} 48... Kh5 {[%clk 0:00:02.2]} 49. g4# {[%clk 0:00:19.9]}
1-0

[Event "Early-Titled-Tuesday-Blitz-February-20-2024"]
[Site "Chess.com"]
[Date "2024.02.20"]
[Round "3"]
[White "LaPiToB"]
[Black "blitzking1729"]
[Result "0-1"]
[WhiteElo "2304"]
[BlackElo "2716"]
[TimeControl "180+1"]
[EndTime "8:29:07 PST"]
[Termination "blitzking1729 won on time"]

1. d4 {[%clk 0:03:00.9]} 1... d6 {[%clk 0:02:59.9]} 2. Nf3 {[%clk 0:02:56.8]}
2... g6 {[%clk 0:02:59.8]} 3. c4 {[%clk 0:02:55.8]} 3... Bg7 {[%clk 0:03:00.3]}
4. Nc3 {[%clk 0:02:55.7]} 4... Nd7 {[%clk 0:03:00.8]} 5. e4 {[%clk 0:02:55.4]}
5... e5 {[%clk 0:03:01.1]} 6. Be2 {[%clk 0:02:52.3]} 6... Ne7 {[%clk 0:03:00.9]}
7. Be3 {[%clk 0:02:44.1]} 7... O-O {[%clk 0:03:01.1]} 8. O-O {[%clk 0:02:43.3]}
8... h6 {[%clk 0:02:59.9]} 9. dxe5 {[%clk 0:02:34.1]} 9... dxe5 {[%clk
0:02:59.1]} 10. Qd2 {[%clk 0:02:29.8]} 10... Kh7 {[%clk 0:02:59]} 11. Rad1
{[%clk 0:02:22.7]} 11... f5 {[%clk 0:02:52.6]} 12. Bc5 {[%clk 0:01:56.9]} 12...
Rf7 {[%clk 0:02:48.6]} 13. Bxe7 {[%clk 0:01:55.5]} 13... Qxe7 {[%clk 0:02:46.7]}
14. Nd5 {[%clk 0:01:55.3]} 14... Qd6 {[%clk 0:02:43.1]} 15. exf5 {[%clk
0:01:46.9]} 15... gxf5 {[%clk 0:02:42.9]} 16. Qc2 {[%clk 0:01:42.6]} 16... e4
{[%clk 0:02:34.9]} 17. Nh4 {[%clk 0:01:31.6]} 17... Ne5 {[%clk 0:01:53]} 18. Bh5
{[%clk 0:01:29.3]} 18... Rf8 {[%clk 0:01:52.2]} 19. c5 {[%clk 0:01:14.7]} 19...
Qc6 {[%clk 0:01:50.7]} 20. Ne7 {[%clk 0:01:10]} 20... Qf6 {[%clk 0:01:48.5]} 21.
Neg6 {[%clk 0:00:56.7]} 21... Nxg6 {[%clk 0:01:41.1]} 22. Nxg6 {[%clk
0:00:53.5]} 22... Rg8 {[%clk 0:01:41.2]} 23. Nf4 {[%clk 0:00:51.8]} 23... Qg5
{[%clk 0:01:31.4]} 24. g3 {[%clk 0:00:47.1]} 24... Be5 {[%clk 0:01:31]} 25. Bg6+
{[%clk 0:00:34.1]} 25... Rxg6 {[%clk 0:01:25.5]} 26. Nxg6 {[%clk 0:00:34.2]}
26... Qxg6 {[%clk 0:01:25.4]} 27. Rd8 {[%clk 0:00:30.8]} 27... Bf6 {[%clk
0:01:22.7]} 28. Rfd1 {[%clk 0:00:22.8]} 28... Bxd8 {[%clk 0:01:03.6]} 29. Rxd8
{[%clk 0:00:23.7]} 29... c6 {[%clk 0:00:54.9]} 30. Qc3 {[%clk 0:00:23.6]} 30...
Qg7 {[%clk 0:00:52.9]} 31. Qd2 {[%clk 0:00:22.5]} 31... Qf6 {[%clk 0:00:25.5]}
32. Rd6 {[%clk 0:00:17.5]} 32... Be6 {[%clk 0:00:23.8]} 33. Qb4 {[%clk
0:00:14.5]} 33... Rb8 {[%clk 0:00:13.9]} 34. Qa5 {[%clk 0:00:14]} 34... Rf8
{[%clk 0:00:06]} 35. Qxa7 {[%clk 0:00:13.5]} 35... Rf7 {[%clk 0:00:06.4]} 36.
Qb8 {[%clk 0:00:13]} 36... Re7 {[%clk 0:00:06.6]} 37. Qd8 {[%clk 0:00:11.2]}
37... Kg7 {[%clk 0:00:07]} 38. Qb8 {[%clk 0:00:09.8]} 38... Qf7 {[%clk
0:00:07.1]} 39. Rd8 {[%clk 0:00:09.6]} 39... Bd5 {[%clk 0:00:06.9]} 40. Qd6
{[%clk 0:00:07.2]} 40... Qf6 {[%clk 0:00:06.9]} 41. Qf4 {[%clk 0:00:03.2]} 41...
e3 {[%clk 0:00:06.7]} 42. Rd6 {[%clk 0:00:03.1]} 42... e2 {[%clk 0:00:06]} 0-1

[Event "Early-Titled-Tuesday-Blitz-February-20-2024"]
[Site "Chess.com"]
[Date "2024.02.20"]
[Round "3"]
[White "ninguno46"]
[Black "LuisFSiles"]
[Result "0-1"]
[WhiteElo "2540"]
[BlackElo "2304"]
[TimeControl "180+1"]
[EndTime "8:29:08 PST"]
[Termination "LuisFSiles won by resignation"]

1. e4 {[%clk 0:02:59.7]} 1... c5 {[%clk 0:02:59.6]} 2. Nc3 {[%clk 0:02:58.8]}
2... Nc6 {[%clk 0:02:58]} 3. f4 {[%clk 0:02:59.3]} 3... g6 {[%clk 0:02:57.7]} 4.
Nf3 {[%clk 0:02:59.9]} 4... Bg7 {[%clk 0:02:58]} 5. Bb5 {[%clk 0:03:00.1]} 5...
Nd4 {[%clk 0:02:58.2]} 6. O-O {[%clk 0:02:59.7]} 6... Nxb5 {[%clk 0:02:54.3]} 7.
Nxb5 {[%clk 0:02:59]} 7... d5 {[%clk 0:02:51.3]} 8. exd5 {[%clk 0:02:57.5]} 8...
a6 {[%clk 0:02:51.5]} 9. Nc3 {[%clk 0:02:57.5]} 9... Nf6 {[%clk 0:02:51.5]} 10.
d4 {[%clk 0:02:50.5]} 10... Nxd5 {[%clk 0:02:43.3]} 11. dxc5 {[%clk 0:02:46]}
11... Nxc3 {[%clk 0:02:40.4]} 12. Qxd8+ {[%clk 0:02:45.3]} 12... Kxd8 {[%clk
0:02:41.3]} 13. bxc3 {[%clk 0:02:45.1]} 13... Bxc3 {[%clk 0:02:39.7]} 14. Rb1
{[%clk 0:02:43.2]} 14... Kc7 {[%clk 0:02:36.5]} 15. Rb3 {[%clk 0:02:39.6]} 15...
Bf6 {[%clk 0:02:32.9]} 16. Bd2 {[%clk 0:02:26.1]} 16... a5 {[%clk 0:02:15.4]}
17. Rfb1 {[%clk 0:02:24.1]} 17... a4 {[%clk 0:02:08.9]} 18. Rb5 {[%clk 0:02:23]}
18... Ra6 {[%clk 0:02:00.9]} 19. Ba5+ {[%clk 0:02:17.6]} 19... Kc6 {[%clk
0:01:54.8]} 20. Bd2 {[%clk 0:01:59.1]} 20... Rd8 {[%clk 0:01:31.1]} 21. c4
{[%clk 0:01:35.8]} 21... Bf5 {[%clk 0:01:09.8]} 22. R1b4 {[%clk 0:00:59.6]}
22... Be4 {[%clk 0:00:48.9]} 23. Rb6+ {[%clk 0:00:46.3]} 23... Rxb6 {[%clk
0:00:42.7]} 24. Rxb6+ {[%clk 0:00:45.5]} 24... Kxc5 {[%clk 0:00:30.7]} 25. Be3+
{[%clk 0:00:43.7]} 25... Kxc4 {[%clk 0:00:30.8]} 26. Nd2+ {[%clk 0:00:39.1]}
26... Kd3 {[%clk 0:00:30]} 27. Kf2 {[%clk 0:00:39.4]} 27... Bc6 {[%clk
0:00:24.9]} 28. Rb1 {[%clk 0:00:33.7]} 28... Bd4 {[%clk 0:00:23.9]} 29. Nf1
{[%clk 0:00:33.4]} 29... Bxe3+ {[%clk 0:00:22]} 30. Nxe3 {[%clk 0:00:32.8]}
30... Rd6 {[%clk 0:00:19.6]} 31. a3 {[%clk 0:00:29]} 31... Kc3 {[%clk
0:00:18.6]} 32. Rb4 {[%clk 0:00:25.1]} 32... Rd2+ {[%clk 0:00:18.5]} 33. Ke1
{[%clk 0:00:25.3]} 33... Ra2 {[%clk 0:00:16.1]} 34. Nd1+ {[%clk 0:00:24.5]}
34... Kc2 {[%clk 0:00:15.1]} 35. Rc4+ {[%clk 0:00:23.1]} 35... Kd3 {[%clk
0:00:14.6]} 36. Rc3+ {[%clk 0:00:22.6]} 36... Kd4 {[%clk 0:00:13.3]} 37. Rh3
{[%clk 0:00:21.1]} 37... Ra1 {[%clk 0:00:11.5]} 38. Kd2 {[%clk 0:00:20.2]} 38...
Ra2+ {[%clk 0:00:10.9]} 39. Kc1 {[%clk 0:00:20.4]} 39... h5 {[%clk 0:00:10.1]}
40. Nc3 {[%clk 0:00:20.2]} 40... Rxg2 {[%clk 0:00:08.8]} 41. Nd1 {[%clk
0:00:18.8]} 41... Be4 {[%clk 0:00:06.6]} 42. Rh4 {[%clk 0:00:18.4]} 42... Rc2+
{[%clk 0:00:06.7]} 43. Kb1 {[%clk 0:00:17.9]} 43... Rxh2+ {[%clk 0:00:07.3]} 44.
Kc1 {[%clk 0:00:17.7]} 44... Rxh4 {[%clk 0:00:07.7]} 45. Kd2 {[%clk 0:00:18.4]}
45... Rh2+ {[%clk 0:00:07.5]} 46. Ke1 {[%clk 0:00:18.6]} 46... h4 {[%clk
0:00:08.1]} 47. Nf2 {[%clk 0:00:17.2]} 47... Rxf2 {[%clk 0:00:08.2]} 48. Kxf2
{[%clk 0:00:16.9]} 48... h3 {[%clk 0:00:08.6]} 49. Kg3 {[%clk 0:00:17.7]} 49...
Bg2 {[%clk 0:00:08.8]} 50. Kh2 {[%clk 0:00:17.8]} 50... Ke4 {[%clk 0:00:09.2]}
51. f5 {[%clk 0:00:17.7]} 51... Kxf5 {[%clk 0:00:09.6]} 52. Kg1 {[%clk
0:00:17.4]} 52... Kg4 {[%clk 0:00:09.7]} 53. Kh2 {[%clk 0:00:18.3]} 53... Kh4
{[%clk 0:00:09.9]} 54. Kg1 {[%clk 0:00:18.5]} 54... Bc6 {[%clk 0:00:10.5]} 0-1

[Event "Early-Titled-Tuesday-Blitz-February-20-2024"]
[Site "Chess.com"]
[Date "2024.02.20"]
[Round "3"]
[White "NM_Antelacus"]
[Black "Zarinur"]
[Result "0-1"]
[WhiteElo "2248"]
[BlackElo "2499"]
[TimeControl "180+1"]
[EndTime "8:29:08 PST"]
[Termination "Zarinur won on time"]

1. e4 {[%clk 0:03:00.9]} 1... e5 {[%clk 0:02:59.3]} 2. Nf3 {[%clk 0:03:00.4]}
2... Nc6 {[%clk 0:02:58.9]} 3. Bc4 {[%clk 0:03:00.1]} 3... Nf6 {[%clk
0:02:58.6]} 4. d3 {[%clk 0:02:59.4]} 4... h6 {[%clk 0:02:57.7]} 5. O-O {[%clk
0:02:57.5]} 5... Bc5 {[%clk 0:02:56.3]} 6. c3 {[%clk 0:02:56.1]} 6... d6 {[%clk
0:02:55.9]} 7. h3 {[%clk 0:02:54.7]} 7... a5 {[%clk 0:02:54.7]} 8. d4 {[%clk
0:02:48.1]} 8... Ba7 {[%clk 0:02:49.1]} 9. Re1 {[%clk 0:02:47]} 9... O-O {[%clk
0:02:48]} 10. Qd3 {[%clk 0:02:27.9]} 10... Re8 {[%clk 0:02:43.9]} 11. Nbd2
{[%clk 0:02:23.3]} 11... exd4 {[%clk 0:02:30.9]} 12. cxd4 {[%clk 0:02:22.6]}
12... d5 {[%clk 0:02:25.3]} 13. exd5 {[%clk 0:02:17]} 13... Rxe1+ {[%clk
0:02:17.2]} 14. Nxe1 {[%clk 0:02:16.3]} 14... Nb4 {[%clk 0:02:17.1]} 15. Qg3
{[%clk 0:02:09.2]} 15... Bxd4 {[%clk 0:02:04.3]} 16. Ndf3 {[%clk 0:02:04.9]}
16... Ne4 {[%clk 0:02:03.4]} 17. Qf4 {[%clk 0:01:55.5]} 17... Bxf2+ {[%clk
0:02:01.4]} 18. Kf1 {[%clk 0:01:46.1]} 18... Bxe1 {[%clk 0:01:37.4]} 19. Qxe4
{[%clk 0:01:36.5]} 19... Bg3 {[%clk 0:01:36.6]} 20. a3 {[%clk 0:01:30]} 20...
Na6 {[%clk 0:01:36]} 21. Be3 {[%clk 0:01:25.3]} 21... Bd7 {[%clk 0:01:24.5]} 22.
Bd3 {[%clk 0:01:22]} 22... f5 {[%clk 0:01:20.3]} 23. Qc4 {[%clk 0:01:18.6]}
23... Bd6 {[%clk 0:01:09.8]} 24. Qc2 {[%clk 0:01:14.5]} 24... Qf6 {[%clk
0:01:05.9]} 25. Bd4 {[%clk 0:01:11.9]} 25... Qf7 {[%clk 0:01:05]} 26. Re1 {[%clk
0:01:03.3]} 26... Qxd5 {[%clk 0:00:59.3]} 27. Bc4 {[%clk 0:01:02.1]} 27... Bb5
{[%clk 0:00:58.9]} 28. b3 {[%clk 0:00:45.5]} 28... Bxc4+ {[%clk 0:00:55.8]} 29.
bxc4 {[%clk 0:00:45.6]} 29... Qf7 {[%clk 0:00:54.8]} 30. c5 {[%clk 0:00:40.3]}
30... Bg3 {[%clk 0:00:53.4]} 31. Ne5 {[%clk 0:00:34.2]} 31... Bxe5 {[%clk
0:00:51.1]} 32. Rxe5 {[%clk 0:00:33]} 32... Rf8 {[%clk 0:00:47]} 33. Kg1 {[%clk
0:00:30.9]} 33... Nb8 {[%clk 0:00:44.5]} 34. Bc3 {[%clk 0:00:17.2]} 34... Nc6
{[%clk 0:00:44.1]} 35. Re1 {[%clk 0:00:16.3]} 35... Qc4 {[%clk 0:00:42.3]} 36.
Qd2 {[%clk 0:00:15.7]} 36... Qxc5+ {[%clk 0:00:41.2]} 37. Kh1 {[%clk 0:00:14.4]}
37... Rf7 {[%clk 0:00:31.9]} 38. Qb2 {[%clk 0:00:13.3]} 38... f4 {[%clk
0:00:27.7]} 39. Rf1 {[%clk 0:00:12.5]} 39... b5 {[%clk 0:00:24.5]} 40. Rf3
{[%clk 0:00:11.5]} 40... b4 {[%clk 0:00:24.1]} 41. axb4 {[%clk 0:00:09.8]} 41...
axb4 {[%clk 0:00:25]} 42. Bd2 {[%clk 0:00:08.2]} 42... Qc4 {[%clk 0:00:18.8]}
43. Qa1 {[%clk 0:00:03]} 43... Nd4 {[%clk 0:00:11.9]} 44. Qa8+ {[%clk
0:00:02.4]} 44... Rf8 {[%clk 0:00:12.2]} 0-1

[Event "Early-Titled-Tuesday-Blitz-February-20-2024"]
[Site "Chess.com"]
[Date "2024.02.20"]
[Round "3"]
[White "Predator0608"]
[Black "BashirliSaadat"]
[Result "1-0"]
[WhiteElo "2591"]
[BlackElo "2359"]
[TimeControl "180+1"]
[EndTime "8:29:09 PST"]
[Termination "Predator0608 won by resignation"]

1. f4 {[%clk 0:03:00.9]} 1... d5 {[%clk 0:02:59.2]} 2. Nf3 {[%clk 0:03:01]} 2...
Nf6 {[%clk 0:02:59]} 3. g3 {[%clk 0:03:01.4]} 3... Bg4 {[%clk 0:02:59.1]} 4. Bg2
{[%clk 0:03:01.6]} 4... e6 {[%clk 0:02:59.4]} 5. Ne5 {[%clk 0:03:01.4]} 5... Bf5
{[%clk 0:02:58.5]} 6. O-O {[%clk 0:03:01]} 6... c5 {[%clk 0:02:55.8]} 7. d3
{[%clk 0:02:57.5]} 7... Nc6 {[%clk 0:02:51.7]} 8. Nxc6 {[%clk 0:02:45.5]} 8...
bxc6 {[%clk 0:02:45.6]} 9. Qe1 {[%clk 0:02:46.4]} 9... h6 {[%clk 0:02:24.4]} 10.
Kh1 {[%clk 0:02:43.5]} 10... Be7 {[%clk 0:02:19.5]} 11. e4 {[%clk 0:02:42.8]}
11... Bh7 {[%clk 0:02:17.1]} 12. Nc3 {[%clk 0:02:37.4]} 12... O-O {[%clk
0:02:15.3]} 13. h3 {[%clk 0:02:33.6]} 13... Nh5 {[%clk 0:02:06.6]} 14. Bf3
{[%clk 0:02:27.1]} 14... Nf6 {[%clk 0:02:03.2]} 15. g4 {[%clk 0:02:23.2]} 15...
c4 {[%clk 0:01:53]} 16. e5 {[%clk 0:02:07.8]} 16... Nd7 {[%clk 0:01:43.2]} 17.
dxc4 {[%clk 0:02:06.7]} 17... Nb6 {[%clk 0:01:36.5]} 18. cxd5 {[%clk 0:02:03.9]}
18... cxd5 {[%clk 0:01:32.9]} 19. Qe2 {[%clk 0:02:00]} 19... Nc4 {[%clk
0:01:22.8]} 20. f5 {[%clk 0:01:46.9]} 20... Bg5 {[%clk 0:01:03.5]} 21. b3 {[%clk
0:01:27.8]} 21... Bxc1 {[%clk 0:00:47.8]} 22. Raxc1 {[%clk 0:01:17.9]} 22... Nb6
{[%clk 0:00:44.4]} 23. f6 {[%clk 0:01:15.6]} 23... g5 {[%clk 0:00:34.8]} 24. h4
{[%clk 0:01:05.7]} 24... Rc8 {[%clk 0:00:20.7]} 25. hxg5 {[%clk 0:01:04.3]}
25... Rxc3 {[%clk 0:00:18.9]} 26. Qh2 {[%clk 0:00:58.1]} 26... Kh8 {[%clk
0:00:14.6]} 27. Qxh6 {[%clk 0:00:37.1]} 27... Rg8 {[%clk 0:00:14.7]} 28. Kg2
{[%clk 0:00:38]} 28... Rg6 {[%clk 0:00:14]} 29. Qh4 {[%clk 0:00:34.7]} 29... Qg8
{[%clk 0:00:13.9]} 30. Rh1 {[%clk 0:00:35]} 30... Rxg5 {[%clk 0:00:12.3]} 31.
Rh3 {[%clk 0:00:32.4]} 31... Nd7 {[%clk 0:00:11.1]} 32. Rch1 {[%clk 0:00:22.5]}
32... Rxc2+ {[%clk 0:00:11.1]} 33. Kg3 {[%clk 0:00:22.6]} 33... Nf8 {[%clk
0:00:10.6]} 34. Qh6 {[%clk 0:00:22]} 34... Rg6 {[%clk 0:00:09.3]} 35. Qxf8
{[%clk 0:00:21.8]} 35... Rxg4+ {[%clk 0:00:07.4]} 36. Bxg4 {[%clk 0:00:21.9]}
36... Rc3+ {[%clk 0:00:07.4]} 37. Kf2 {[%clk 0:00:20.4]} 37... Rxh3 {[%clk
0:00:05.2]} 38. Qxg8+ {[%clk 0:00:19.4]} 38... Kxg8 {[%clk 0:00:05.5]} 39. Rxh3
{[%clk 0:00:20.3]} 39... Bb1 {[%clk 0:00:04.5]} 40. Rg3 {[%clk 0:00:19.7]} 40...
Kf8 {[%clk 0:00:03.6]} 41. Bh5 {[%clk 0:00:19.9]} 41... Bxa2 {[%clk 0:00:03.2]}
42. Rg7 {[%clk 0:00:20.5]} 42... Bxb3 {[%clk 0:00:02.5]} 43. Rxf7+ {[%clk
0:00:21.4]} 43... Kg8 {[%clk 0:00:01.7]} 44. Rxa7 {[%clk 0:00:21.6]} 44... d4
{[%clk 0:00:02.2]} 45. f7+ {[%clk 0:00:22.1]} 45... Kg7 {[%clk 0:00:02.5]} 46.
Ra8 {[%clk 0:00:23]} 1-0